bitfinex-derivatives/quotes_ETHF0:USTF0_20241230
["timestamp","ask_amount","ask_price","bid_price","bid_amount"]
[1735582623903,0.2945,3398.8,3398.7,3.2078]
[1735582624109,7.44268433,3399.2,3398.7,3.2078]
[1735582624304,7.44268433,3399.2,3399.1,3.2078]
[1735582624305,0.29446,3399.2,3399.1,3.2078]
[1735582626412,0.29446,3399.3,3399.1,3.2078]
[1735582626712,2.30938487,3399.8,3399.1,3.2078]
[1735582626713,2.30938487,3399.8,3399.7,0.29442]
[1735582627013,1.52761834,3400.0,3399.9,0.2944]
[1735582627205,4.59682446,3400.2,3399.8,0.706]
[1735582627406,4.59682446,3400.2,3400.1,3.50218]
[1735582627911,4.59682446,3400.2,3400.1,44.30218]
[1735582628612,7.18956669,3400.7,3400.1,44.0078]
[1735582628613,0.29433,3400.7,3400.1,44.0078]
[1735582628813,0.29433,3400.7,3400.6,3.2078]
[1735582629017,0.23082431,3401.3,3400.6,3.2078]
[1735582629203,0.29429,3401.2,3401.1,3.2078]
[1735582629606,3.1179739,3401.2,3401.1,3.2078]
[1735582630004,0.29433,3400.7,3400.6,3.2078]
[1735582630318,7.68016098,3400.7,3400.6,3.2078]
[1735582630612,7.68016098,3400.7,3400.2,3.2078]
[1735582630613,0.29437,3400.3,3400.2,3.2078]
[1735582630809,3.2078,3400.4,3399.8,3.2078]
[1735582631010,0.29439,3400.0,3399.8,3.2078]
[1735582631518,3.2078,3400.4,3399.8,3.2078]
[1735582631717,6.0314839,3400.4,3399.8,3.2078]
[1735582631923,6.0314839,3400.4,3399.2,0.6962]
[1735582631924,0.29443,3399.6,3399.3,3.2078]
[1735582632109,0.29444,3399.4,3399.3,3.2078]
[1735582632316,0.29448,3399.0,3398.5,3.2078]
[1735582632714,2.8236839,3399.2,3398.5,3.2078]
[1735582632715,0.2945,3398.8,3398.5,3.2078]
[1735582633013,0.29451,3398.6,3398.5,3.2078]
[1735582633412,7.97012816,3399.1,3398.5,3.2078]
[1735582633413,0.29451,3398.7,3398.5,3.2078]
[1735582633623,7.97012816,3399.1,3398.5,3.2078]
[1735582634512,0.29448,3399.0,3398.5,3.2078]
[1735582634808,7.97012816,3399.1,3398.5,3.2078]
[1735582635015,0.6936,3399.1,3398.6,0.29451]
[1735582635219,0.6917,3399.5,3398.6,3.2078]
[1735582635615,0.29445,3399.4,3398.9,0.29449]
[1735582635815,0.6917,3399.5,3398.6,3.2078]
[1735582636022,2.8236839,3399.2,3398.6,3.2078]
[1735582636323,2.95584258,3399.1,3398.6,3.2078]
[1735582636520,2.8236839,3398.8,3398.1,3.2078]
[1735582636719,0.29455,3398.2,3397.6,6.97506045]
[1735582637015,7.24320005,3398.7,3398.0,3.2078]
[1735582637219,0.688,3399.0,3398.6,0.29451]
[1735582637416,0.29449,3398.9,3398.5,3.2078]
[1735582637616,0.29451,3398.7,3398.5,3.2078]
[1735582637819,0.688,3399.0,3398.6,0.29451]
[1735582638018,0.688,3399.0,3398.5,3.2078]
[1735582638019,0.23517404,3399.1,3398.5,3.2078]
[1735582638220,0.29449,3398.9,3398.5,3.2078]
[1735582638420,7.49499852,3399.0,3398.5,3.2078]
[1735582638814,2.1125,3399.5,3398.5,3.2078]
[1735582638815,1.3764,3399.5,3398.5,3.2078]
[1735582639015,0.29445,3399.3,3398.9,3.50229]
[1735582639218,1.3764,3399.5,3398.9,3.2078]
[1735582639219,7.22146828,3399.4,3398.9,3.2078]
[1735582639413,0.2944,3399.9,3399.4,0.29444]
[1735582639724,0.7132,3400.4,3400.0,0.29438]
[1735582639914,0.6847,3400.5,3400.2,3.2078]
[1735582640227,3.2078,3401.0,3400.2,3.2078]
[1735582640415,3.2078,3401.0,3400.5,0.29435]
[1735582640613,5.74603057,3401.1,3400.7,3.2078]
[1735582641216,0.29433,3400.8,3400.3,3.2078]
[1735582641424,0.29432,3400.9,3400.3,3.2078]
[1735582641726,3.2078,3401.1,3400.3,3.2078]
[1735582641927,3.2078,3401.1,3400.4,0.29436]
[1735582642118,3.5021,3401.1,3400.4,0.29436]
[1735582642319,3.5021,3401.1,3400.5,0.29435]
[1735582642523,0.91852695,3401.4,3400.7,3.50213]
[1735582642718,0.6847,3401.4,3400.7,3.2078]
[1735582643131,0.29429,3401.3,3400.7,3.2078]
[1735582643321,0.29429,3401.2,3400.7,3.2078]
[1735582644928,0.6847,3401.4,3400.7,3.2078]
[1735582645127,0.2943,3401.1,3400.7,3.2078]
[1735582645322,0.6847,3401.4,3400.7,3.2078]
[1735582645526,0.2943,3401.1,3400.7,3.2078]
[1735582646223,0.6847,3401.4,3400.7,3.2078]
[1735582646824,0.2943,3401.1,3400.7,3.2078]
[1735582647025,0.29429,3401.2,3400.7,3.2078]
[1735582647231,0.6847,3401.4,3401.0,0.2943]
[1735582647538,0.29426,3401.6,3401.1,3.2078]
[1735582647929,0.29426,3401.5,3401.1,3.2078]
[1735582648128,4.15363879,3401.9,3401.1,3.2078]
[1735582648327,0.29426,3401.6,3401.1,3.2078]
[1735582648533,4.15363879,3401.9,3401.1,3.2078]
[1735582648534,0.29427,3401.5,3401.1,3.2078]
[1735582649422,0.29426,3401.6,3401.1,3.2078]
[1735582649626,0.29424,3401.8,3401.1,3.2078]
[1735582649829,0.29426,3401.6,3401.1,3.2078]
[1735582650424,4.15363879,3401.9,3401.1,3.2078]
[1735582650628,0.29426,3401.6,3401.1,3.2078]
[1735582651434,0.29426,3401.6,3401.1,3.5021]
[1735582651727,0.29426,3401.5,3401.1,3.2078]
[1735582652131,0.29427,3401.4,3401.1,3.2078]
[1735582652329,0.29429,3401.2,3401.1,3.2078]
[1735582652532,3.1179739,3401.2,3401.1,3.2078]
[1735582653033,0.29429,3401.2,3401.1,3.2078]
[1735582653534,0.29426,3401.5,3401.1,3.50209]
[1735582653733,0.29427,3401.4,3401.1,3.2078]
[1735582654132,4.15363879,3401.9,3401.1,3.2078]
[1735582654133,0.29428,3401.3,3401.1,3.2078]
[1735582654530,4.88921879,3401.9,3401.1,3.2078]
[1735582654823,0.29429,3401.2,3401.1,3.2078]
[1735582656637,3.1179739,3401.2,3401.1,3.2078]
[1735582656934,0.29437,3400.4,3400.3,3.2078]
[1735582657335,0.29435,3400.5,3400.3,3.2078]
[1735582657537,0.29436,3400.4,3400.3,3.2078]
[1735582657936,2.8236839,3400.8,3400.3,3.2078]
[1735582658238,0.29436,3400.4,3400.3,3.2078]
[1735582658936,0.53082751,3400.9,3400.7,0.29433]
[1735582659126,0.23650751,3400.9,3400.3,3.2078]
[1735582659333,0.29433,3400.7,3400.6,0.29433]
[1735582659541,0.29432,3400.9,3400.8,0.29432]
[1735582659740,3.2078,3401.1,3400.3,3.2078]
[1735582659934,0.29433,3400.8,3400.3,3.2078]
[1735582660236,0.29436,3400.4,3400.3,3.2078]
[1735582660932,0.29436,3400.4,3400.3,3.50217]
[1735582661141,0.6945,3401.0,3400.3,3.2078]
[1735582661335,0.29432,3400.9,3400.8,0.29432]
[1735582661544,0.29431,3401.0,3400.9,0.29431]
[1735582661736,3.2078,3401.1,3400.7,0.29433]
[1735582661939,0.29433,3400.8,3400.7,0.29433]
[1735582662138,0.29432,3400.9,3400.7,0.29433]
[1735582662547,3.2078,3401.1,3400.8,0.29432]
[1735582663142,0.29431,3401.0,3400.8,0.29432]
[1735582663442,3.2078,3401.1,3400.5,1.438]
[1735582663636,3.2078,3401.5,3400.8,0.73581]
[1735582663937,2.8236839,3402.0,3400.8,0.73581]
[1735582663938,6.0314839,3402.0,3400.8,0.73581]
[1735582664143,6.0314839,3402.0,3401.1,3.2078]
[1735582664333,3.2078,3402.0,3401.1,3.2078]
[1735582664537,0.29422,3402.0,3401.5,3.2078]
[1735582664737,1.02968,3402.3,3401.6,0.29425]
[1735582665038,2.8236839,3402.4,3401.5,3.2078]
[1735582665243,0.2942,3402.3,3402.0,0.29421]
[1735582665542,1.2307,3402.7,3402.0,3.2078]
[1735582665736,1.2307,3402.7,3402.2,0.2942]
[1735582665737,0.29418,3402.5,3402.2,0.2942]
[1735582665938,1.2307,3402.7,3402.2,0.2942]
[1735582666141,0.29418,3402.5,3402.2,0.2942]
[1735582666340,1.2307,3402.7,3402.0,3.2078]
[1735582666637,0.29418,3402.5,3402.1,0.2942]
[1735582666944,3.2078,3402.5,3401.6,1.3002]
[1735582667348,0.29421,3402.2,3401.8,0.29423]
[1735582667640,0.2942,3402.3,3402.0,0.29422]
[1735582667938,0.2942,3402.3,3401.6,1.3002]
[1735582667939,3.50198,3402.5,3401.7,0.73562]
[1735582668140,3.50198,3402.5,3402.2,0.2942]
[1735582668546,3.50198,3402.5,3402.1,0.29421]
[1735582668745,0.2942,3402.3,3401.7,0.29425]
[1735582668942,3.2078,3402.5,3401.6,1.3002]
[1735582668943,2.8236839,3402.4,3401.6,1.3002]
[1735582669140,0.29425,3401.6,3401.5,3.2078]
[1735582669538,2.8236839,3402.0,3401.0,3.8573]
[1735582669738,3.2078,3401.7,3401.0,3.8573]
[1735582669946,0.29426,3401.6,3401.4,0.29427]
[1735582670145,0.6424,3401.9,3401.0,3.8573]
[1735582670441,0.29429,3401.2,3401.0,4.1516]
[1735582670635,0.2943,3401.1,3401.0,0.9438]
[1735582670839,3.2078,3401.7,3401.0,0.6495]
[1735582671547,0.29426,3401.6,3401.5,0.29426]
[1735582671744,3.2078,3401.7,3401.3,0.29428]
[1735582671958,3.2078,3401.7,3401.2,3.2078]
[1735582671959,0.29428,3401.3,3401.2,3.2078]
[1735582672447,0.29426,3401.6,3401.5,0.29426]
[1735582672642,0.29426,3401.6,3401.4,0.29426]
[1735582672844,0.29426,3401.5,3401.4,0.29426]
[1735582673052,0.29426,3401.5,3401.2,3.2078]
[1735582673053,0.29428,3401.3,3401.2,3.2078]
[1735582673348,3.2078,3401.7,3401.2,3.2078]
[1735582673541,0.29427,3401.4,3401.2,3.2078]
[1735582673741,0.2943,3401.1,3400.8,0.6114]
[1735582673943,2.8236839,3401.2,3400.5,0.29435]
[1735582674248,3.2078,3401.3,3400.8,3.2078]
[1735582674549,7.36322081,3401.7,3400.5,5.0]
[1735582674550,3.2078,3401.7,3400.7,44.0078]
[1735582674743,0.29426,3401.6,3401.4,0.29427]
[1735582674940,0.29428,3401.4,3401.2,0.29428]
[1735582675141,3.2078,3401.7,3400.8,0.6598]
[1735582675343,0.29426,3401.5,3401.3,0.29428]
[1735582675546,3.2078,3401.7,3400.8,0.6598]
[1735582676049,3.2078,3401.7,3401.2,0.29428]
[1735582676050,0.29428,3401.4,3401.2,0.29428]
[1735582676451,3.2078,3401.7,3401.0,0.2943]
[1735582676452,0.29425,3401.6,3401.0,0.2943]
[1735582676643,0.29425,3401.6,3400.8,0.6598]
[1735582676644,0.29431,3400.9,3400.8,0.29432]
[1735582676951,0.2943,3401.1,3400.7,3.2078]
[1735582677252,0.73566,3401.5,3400.8,0.29432]
[1735582677556,0.29431,3401.0,3400.8,0.29432]
[1735582677747,0.2943,3401.1,3400.7,3.2078]
[1735582677941,0.2943,3401.1,3400.9,0.29431]
[1735582678138,0.88509221,3401.6,3400.7,3.2078]
[1735582678345,0.2943,3401.2,3401.0,0.2943]
[1735582678745,0.88509221,3401.6,3400.7,3.2078]
[1735582678950,0.88509221,3401.6,3400.9,0.29431]
[1735582678951,0.2943,3401.1,3400.9,0.29431]
[1735582679344,0.88509221,3401.6,3400.7,3.2078]
[1735582679550,3.2078,3401.7,3401.5,0.29425]
[1735582679844,0.29425,3401.7,3400.9,0.73577]
[1735582680046,2.8236839,3402.1,3401.5,0.29426]
[1735582680047,0.29424,3401.8,3401.5,0.29426]
[1735582680245,0.6508,3402.0,3401.9,0.29423]
[1735582680442,0.23652822,3402.4,3401.9,0.29423]
[1735582680641,0.23652822,3402.4,3401.6,3.2078]
[1735582680642,7.3155839,3402.5,3401.6,3.2078]
[1735582681044,4.4919,3402.5,3402.0,3.2078]
[1735582681251,3.8486,3402.5,3402.4,0.29418]
[1735582681648,3.2078,3402.5,3402.4,0.29418]
[1735582681852,0.6433,3403.1,3402.0,3.2078]
[1735582681853,3.825,3403.0,3402.8,0.29415]
[1735582682052,3.825,3403.0,3402.9,0.29414]
[1735582682053,0.6172,3403.0,3402.9,0.29414]
[1735582682349,3.50189,3403.5,3403.0,0.29413]
[1735582682554,3.2078,3403.5,3402.8,0.29415]
[1735582682849,3.2078,3403.5,3403.1,0.29412]
[1735582683044,3.50189,3403.5,3403.0,0.29413]
[1735582683246,2.8236839,3403.3,3402.7,3.50196]
[1735582683558,3.50189,3403.5,3403.0,0.29413]
[1735582683751,3.2078,3403.5,3402.7,3.2078]
[1735582684053,0.2941,3403.4,3402.7,3.2078]
[1735582684249,3.2078,3403.5,3402.9,0.29414]
[1735582684457,0.2941,3403.4,3402.9,0.29414]
[1735582684653,3.2078,3403.5,3403.2,0.29411]
[1735582684849,3.2078,3403.5,3402.7,3.2078]
[1735582685353,0.6172,3403.6,3403.1,3.2078]
[1735582685651,0.91128,3403.6,3403.2,0.29411]
[1735582685849,0.6172,3403.6,3403.2,0.29411]
[1735582686056,0.6172,3403.6,3403.3,0.29411]
[1735582686255,0.6172,3403.6,3403.2,0.29411]
[1735582686449,0.6172,3403.6,3403.3,0.2941]
[1735582686646,0.6172,3403.6,3403.2,0.29411]
[1735582686850,0.6172,3403.6,3403.1,3.2078]
[1735582687250,0.91128,3403.6,3403.2,0.29411]
[1735582688454,0.91128,3403.6,3403.1,3.50192]
[1735582688650,0.6172,3403.6,3403.1,3.2078]
[1735582689351,0.6172,3403.6,3403.2,0.29411]
[1735582689658,3.825,3403.6,3402.7,3.2078]
[1735582689858,2.8236839,3403.3,3402.7,3.2078]
[1735582690062,0.29409,3403.5,3403.0,0.29413]
[1735582690256,3.825,3403.6,3402.7,8.2078]
[1735582690553,3.825,3403.6,3402.7,3.2078]
[1735582690753,0.2941,3403.5,3402.8,0.29415]
[1735582691065,0.2941,3403.4,3402.9,0.29414]
[1735582691754,3.825,3403.6,3402.8,0.95084]
[1735582691956,2.8236839,3402.9,3402.3,3.2078]
[1735582692156,0.29416,3402.7,3402.3,3.2078]
[1735582692362,0.29417,3402.6,3402.3,3.2078]
[1735582692760,0.29416,3402.7,3402.3,3.2078]
[1735582693066,3.44634774,3403.2,3402.3,3.50199]
[1735582693257,3.44634774,3403.2,3402.5,0.29417]
[1735582693452,0.29414,3403.0,3402.5,0.29417]
[1735582693760,0.29415,3402.9,3402.4,0.29418]
[1735582693961,0.29415,3402.8,3402.4,0.29418]
[1735582694162,0.29415,3402.8,3402.3,3.50199]
[1735582694360,0.29415,3402.8,3402.4,0.29418]
[1735582694861,0.29415,3402.8,3402.3,3.2078]
[1735582695057,0.29415,3402.8,3402.5,0.29417]
[1735582695259,0.29415,3402.9,3402.6,0.29416]
[1735582695658,0.29414,3402.9,3402.6,0.29416]
[1735582696058,0.29414,3402.9,3402.5,0.29417]
[1735582696258,0.29415,3402.8,3402.5,0.29417]
[1735582696458,3.2078,3403.2,3402.6,0.29416]
[1735582696459,0.29415,3402.9,3402.6,0.29416]
[1735582696658,0.29412,3403.1,3402.5,0.29417]
[1735582696859,0.29415,3402.8,3402.5,0.29417]
[1735582698065,3.2078,3403.2,3402.3,3.2078]
[1735582698271,0.29415,3402.8,3402.5,0.29417]
[1735582699159,3.2078,3402.8,3402.1,0.6424]
[1735582699466,3.2078,3402.4,3401.4,3.2078]
[1735582699665,0.29426,3401.6,3401.4,3.2078]
[1735582699862,0.29424,3401.9,3401.6,0.29425]
[1735582700069,8.1410148,3402.3,3401.4,3.2078]
[1735582700462,0.6511,3402.3,3401.4,3.2078]
[1735582700656,3.2078,3402.4,3401.4,3.2078]
[1735582700858,0.29424,3401.8,3401.4,3.2078]
[1735582701172,1.38659,3402.3,3401.4,3.2078]
[1735582701371,0.29426,3401.6,3401.4,3.2078]
[1735582701566,0.6511,3402.3,3401.4,3.2078]
[1735582701969,0.29423,3401.9,3401.8,0.29423]
[1735582702172,0.29424,3401.8,3401.7,0.29424]
[1735582702372,1.3866,3402.3,3401.4,3.2078]
[1735582702579,0.29424,3401.8,3401.7,0.29424]
[1735582702767,0.73553,3402.1,3401.4,3.2078]
[1735582703069,0.29426,3401.5,3401.4,3.2078]
[1735582703269,0.2943,3401.1,3401.0,0.18282805]
[1735582703573,0.2943,3401.1,3400.5,1.2138]
[1735582703574,0.41415382,3401.1,3400.5,1.2138]
[1735582703775,0.11985382,3401.1,3400.5,1.2138]
[1735582704068,2.8236839,3401.2,3401.1,0.2943]
[1735582704069,0.29429,3401.2,3401.1,0.2943]
[1735582704274,3.2078,3401.4,3401.2,0.29428]
[1735582704469,0.29428,3401.3,3401.2,0.29428]
[1735582704669,0.29428,3401.3,3401.1,0.29429]
[1735582704966,3.2078,3401.4,3400.8,3.2078]
[1735582705171,3.50208,3401.4,3401.1,0.29429]
[1735582705372,0.29429,3401.3,3400.9,0.29431]
[1735582705672,0.29428,3401.3,3401.1,0.29429]
[1735582706075,0.29429,3401.2,3401.0,0.29431]
[1735582706574,3.2078,3401.4,3400.8,3.2078]
[1735582706872,0.29426,3401.5,3401.3,0.29428]
[1735582707069,0.29428,3401.3,3401.1,0.29429]
[1735582707273,0.29429,3401.2,3400.8,3.2078]
[1735582707470,0.73566,3401.5,3400.8,3.2078]
[1735582707663,0.29429,3401.2,3401.0,0.2943]
[1735582707975,0.29428,3401.3,3401.1,0.29429]
[1735582708175,3.4269839,3401.6,3400.8,3.2078]
[1735582708176,0.29429,3401.2,3400.8,3.2078]
[1735582708380,0.2943,3401.1,3400.9,0.29431]
[1735582708569,0.29429,3401.3,3401.1,0.29429]
[1735582708770,3.4269839,3401.6,3400.8,3.2078]
[1735582709074,3.2078,3401.8,3400.8,3.2078]
[1735582709267,7.896,3404.6,3400.8,3.2078]
[1735582709268,3.2078,3402.2,3401.3,0.73571]
[1735582709464,0.29422,3402.1,3401.3,0.73571]
[1735582709771,0.29422,3402.1,3401.9,0.29423]
[1735582709772,0.29421,3402.1,3401.9,0.29423]
[1735582710172,3.2078,3402.2,3401.9,0.29423]
[1735582710475,3.50201,3402.2,3401.9,0.29423]
[1735582710775,3.50201,3402.2,3401.4,1.2702]
[1735582710970,3.2078,3402.2,3402.0,0.29422]
[1735582711467,3.2078,3402.2,3401.7,3.2078]
[1735582711668,6.0314839,3402.2,3401.7,3.2078]
[1735582711864,0.29423,3401.9,3401.7,3.2078]
[1735582712277,0.29423,3401.9,3401.6,0.29425]
[1735582712477,0.29423,3401.9,3401.5,0.29426]
[1735582712668,6.0314839,3401.6,3400.6,8.9072806]
[1735582712877,2.8236839,3400.9,3400.5,6.68046045]
[1735582713075,0.29434,3400.6,3400.5,6.68046045]
[1735582713573,7.50312431,3400.6,3400.5,5.30136045]
[1735582713875,7.50312431,3400.6,3399.6,1.2697]
[1735582713876,12.44620003,3400.6,3399.1,0.6264]
[1735582714174,0.29444,3399.6,3399.1,0.92087]
[1735582714375,2.8236839,3399.7,3399.1,0.6264]
[1735582714677,3.2078,3399.8,3399.1,0.6264]
[1735582714877,3.2078,3399.8,3399.5,0.29444]
[1735582715174,3.2078,3400.3,3399.5,3.2078]
[1735582715383,0.6415,3400.8,3399.9,3.2078]
[1735582715583,6.0314839,3400.9,3400.0,1.8805]
[1735582715774,9.48491087,3400.9,3400.0,1.8805]
[1735582715974,6.66122697,3400.9,3400.3,3.2078]
[1735582716175,6.66122697,3400.9,3400.7,0.29434]
[1735582716377,3.45342697,3400.9,3400.8,0.92604]
[1735582716974,3.2078,3401.7,3400.8,3.8395]
[1735582717172,3.2078,3401.7,3401.3,0.29429]
[1735582717373,3.2078,3401.7,3400.9,42.0807]
[1735582717571,3.2078,3401.7,3401.6,0.29427]
[1735582717982,3.45342697,3402.0,3401.4,3.2078]
[1735582718279,3.2078,3402.2,3402.1,0.29423]
[1735582718479,3.2078,3402.2,3401.9,0.29424]
[1735582718680,3.2078,3402.2,3402.0,0.29424]
[1735582719286,3.2078,3402.2,3401.9,0.29424]
[1735582719679,3.2078,3402.2,3401.5,0.6537]
[1735582719984,3.2078,3402.2,3401.9,0.29424]
[1735582720179,3.2078,3402.2,3401.5,1.38941]
[1735582720383,3.2078,3402.7,3401.9,3.2078]
[1735582720581,0.29421,3402.4,3402.0,1.57804]
[1735582720884,3.50198,3402.7,3402.4,0.2942]
[1735582721084,3.2078,3402.7,3402.0,1.2838]
[1735582721385,3.2078,3402.7,3402.4,0.2942]
[1735582721584,3.50198,3402.7,3402.4,0.2942]
[1735582721778,3.50198,3402.7,3402.5,0.29419]
[1735582721779,3.2078,3402.7,3402.5,0.29419]
[1735582722273,3.2078,3403.2,3402.4,3.2078]
[1735582722473,3.2078,3403.2,3402.9,0.29416]
[1735582722676,3.2078,3403.2,3402.5,0.5989]
[1735582722876,3.50194,3403.2,3402.8,0.29417]
[1735582723086,3.2078,3403.2,3402.8,0.29417]
[1735582723478,3.2078,3403.2,3402.6,0.29419]
[1735582723678,3.2078,3403.2,3402.8,0.29416]
[1735582723881,0.29415,3403.1,3402.6,0.29419]
[1735582724177,3.2078,3402.8,3402.0,4.4916]
[1735582724380,3.2078,3402.8,3402.5,0.29419]
[1735582724581,3.2078,3403.2,3402.4,3.2078]
[1735582724789,3.50192,3403.5,3402.4,3.94331]
[1735582725081,0.29412,3403.4,3403.0,0.29415]
[1735582725286,3.2078,3403.5,3402.9,0.29416]
[1735582725484,0.29412,3403.4,3402.9,0.29416]
[1735582725882,3.2078,3403.5,3402.9,0.29416]
[1735582726186,0.29414,3403.2,3402.7,0.29417]
[1735582726379,0.29414,3403.2,3402.4,3.2078]
[1735582726380,3.2078,3403.5,3402.4,3.2078]
[1735582726580,0.29415,3403.1,3402.6,0.29418]
[1735582726775,3.2078,3403.0,3402.4,3.2078]
[1735582726984,2.8236839,3402.9,3402.4,3.2078]
[1735582727282,0.29418,3402.7,3402.4,3.2078]
[1735582727481,3.2078,3403.0,3402.4,3.502]
[1735582727682,0.29416,3402.9,3402.4,3.502]
[1735582727882,3.50195,3403.0,3402.6,0.29418]
[1735582728086,3.2078,3403.0,3402.6,0.29418]
[1735582728282,3.2078,3403.0,3402.4,3.2078]
[1735582728485,2.8236839,3403.3,3402.7,0.29418]
[1735582728486,0.29415,3403.1,3402.7,0.29418]
[1735582728887,0.29415,3403.0,3402.6,0.29418]
[1735582729087,0.29415,3403.0,3402.4,3.2078]
[1735582729088,3.50195,3403.0,3402.5,0.29419]
[1735582729387,0.29416,3402.9,3402.5,0.29419]
[1735582729886,3.2078,3403.0,3402.5,0.29419]
[1735582730089,3.2078,3403.0,3402.4,3.2078]
[1735582730281,3.2078,3403.0,3402.7,0.29418]
[1735582730481,3.2078,3403.0,3402.4,3.2078]
[1735582730482,3.2078,3403.4,3402.4,3.2078]
[1735582730786,3.50196,3403.0,3402.6,0.29418]
[1735582731089,3.2078,3403.0,3402.8,0.29417]
[1735582732786,3.50195,3403.0,3402.4,3.2078]
[1735582732987,3.2078,3403.0,3402.4,3.2078]
[1735582733490,2.8236839,3402.9,3402.4,3.2078]
[1735582733787,0.29422,3402.3,3402.1,1.408]
[1735582733989,3.2078,3402.5,3402.1,1.70223]
[1735582734190,3.2078,3402.5,3402.1,1.408]
[1735582734388,3.502,3402.5,3402.2,0.29422]
[1735582734586,0.29421,3402.4,3402.1,1.70223]
[1735582734786,3.2078,3402.5,3402.1,1.408]
[1735582735182,0.29421,3402.4,3402.1,1.408]
[1735582735392,3.2078,3402.5,3402.1,1.408]
[1735582735590,0.2942,3402.4,3402.0,0.6494]
[1735582735788,3.2078,3402.5,3402.0,0.6494]
[1735582735789,0.29422,3402.2,3402.0,0.6494]
[1735582736484,6.0314839,3402.5,3401.6,3.2078]
[1735582736691,0.29423,3402.1,3401.9,0.29425]
[1735582736885,0.29423,3402.1,3401.6,3.2078]
[1735582737085,6.0314839,3402.5,3401.6,3.2078]
[1735582737294,3.2078,3402.5,3401.6,3.2078]
[1735582737600,0.29424,3402.0,3401.8,0.29425]
[1735582737790,3.2078,3401.9,3400.9,40.8]
[1735582737987,3.2078,3401.1,3400.8,0.6216]
[1735582738393,3.50212,3401.1,3400.9,0.29433]
[1735582738590,0.29433,3401.0,3400.8,0.91594]
[1735582739090,3.2078,3401.1,3400.8,0.6216]
[1735582739290,3.2078,3401.1,3401.0,0.29433]
[1735582739491,3.2078,3401.1,3400.8,0.6216]
[1735582739688,0.29433,3401.0,3400.9,0.29433]
[1735582739888,3.2078,3401.5,3400.8,0.6216]
[1735582740100,0.2943,3401.3,3401.1,0.29431]
[1735582740497,3.2078,3401.5,3400.9,0.73584]
[1735582740795,3.2078,3401.5,3400.8,0.6216]
[1735582741098,3.2078,3401.5,3399.4,4.5055185]
[1735582741099,2.8236839,3400.9,3399.4,4.5055185]
[1735582741289,0.29446,3399.5,3399.4,4.5055185]
[1735582741601,3.50226,3399.5,3399.4,4.5055185]
[1735582742496,0.29448,3399.2,3398.7,0.29452]
[1735582742795,3.2078,3399.1,3398.7,0.29452]
[1735582743000,3.2078,3399.1,3398.9,0.2945]
[1735582743197,3.2078,3399.1,3398.5,0.6457]
[1735582743499,3.2078,3399.1,3398.2,4.477]
[1735582743701,2.8236839,3398.9,3398.2,3.2078]
[1735582743896,3.2078,3399.1,3397.8,0.6121]
[1735582743897,3.2078,3399.1,3398.6,3.2078]
[1735582744098,3.2078,3399.1,3398.8,0.29451]
[1735582744403,0.29451,3398.9,3398.1,0.29458]
[1735582744596,2.8236839,3398.7,3398.0,3.2078]
[1735582745002,0.29455,3398.5,3398.1,0.29457]
[1735582745200,6.0314839,3399.1,3398.0,3.2078]
[1735582745597,0.29456,3398.4,3398.0,3.50238]
[1735582745800,2.8236839,3398.7,3398.0,3.2078]
[1735582746500,0.29455,3398.4,3398.1,0.29457]
[1735582746699,2.8236839,3398.3,3398.0,3.50238]
[1735582746894,2.8236839,3398.3,3398.0,3.2078]
[1735582747099,0.29458,3398.1,3398.0,3.2078]
[1735582747303,0.29459,3398.0,3397.5,3.2078]
[1735582747601,3.2078,3398.1,3397.5,3.2078]
[1735582747901,2.8236839,3398.3,3398.1,0.29457]
[1735582748103,3.2078,3398.5,3397.6,40.8]
[1735582748299,3.2078,3398.5,3398.4,0.29455]
[1735582749003,3.2078,3398.5,3398.4,41.09455]
[1735582749206,3.2078,3399.0,3398.4,44.0078]
[1735582749400,3.2078,3399.0,3398.9,0.29451]
[1735582749596,3.2078,3399.4,3398.9,3.2078]
[1735582749900,3.2078,3399.4,3399.3,0.29447]
[1735582750506,6.0314839,3399.9,3399.8,0.29443]
[1735582750699,6.0314839,3400.3,3399.4,3.2078]
[1735582750898,6.0314839,3400.3,3399.4,3.808]
[1735582751103,6.0314839,3400.3,3400.2,0.29439]
[1735582751308,2.29265083,3400.5,3400.4,0.29438]
[1735582751595,2.29265083,3400.5,3399.5,1.39144]
[1735582751596,6.0314839,3400.7,3399.5,3.8631]
[1735582751799,2.8236839,3400.0,3399.5,3.8631]
[1735582752398,2.8236839,3399.6,3399.5,3.2078]
[1735582753205,2.8236839,3399.6,3398.9,3.2078]
[1735582753402,2.8236839,3399.2,3398.9,3.2078]
[1735582753610,3.1181739,3399.2,3398.9,3.2078]
[1735582753801,3.1181639,3399.2,3398.9,3.2078]
[1735582754102,3.1181639,3399.2,3398.5,3.2078]
[1735582754103,3.2078,3399.1,3398.5,3.2078]
[1735582754700,3.2078,3399.1,3399.0,0.2945]
[1735582754899,0.2945,3399.0,3398.6,0.29453]
[1735582755096,0.29451,3398.9,3398.5,3.2078]
[1735582755297,0.29451,3398.9,3398.6,0.29453]
[1735582755504,3.2078,3399.1,3398.5,3.2078]
[1735582755802,3.2078,3399.1,3398.6,0.29454]
[1735582756005,0.29451,3399.0,3398.7,0.29452]
[1735582756201,0.29451,3399.0,3398.8,0.29452]
[1735582756502,3.2078,3399.1,3398.5,3.2078]
[1735582756906,0.29451,3399.0,3398.7,0.29452]
[1735582757206,0.29451,3399.0,3398.5,3.2078]
[1735582757508,3.50233,3398.7,3398.4,0.94985]
[1735582757704,3.2078,3398.7,3398.4,0.6553]